[Event "Live Chess"]
[Site "Chess.com"]
[Date "2024.06.01"]
[Round "-"]
[White "LanceMaster23"]
[Black "IanCalvert2"]
[Result "0-1"]
[WhiteElo "1766"]
[BlackElo "1551"]
[TimeControl "300"]
[EndTime "10:31:37 PDT"]
[Termination "IanCalvert2 won by resignation"]

1. Nf3 {[%clk 0:04:58.5]} 1... d5 {[%clk 0:04:57.6]} 2. d4 {[%clk 0:04:57.7]}
2... Nf6 {[%clk 0:04:55.3]} 3. Bf4 {[%clk 0:04:56.9]} 3... c5 {[%clk 0:04:50.9]}
4. c3 {[%clk 0:04:55.7]} 4... Nc6 {[%clk 0:04:42]} 5. e3 {[%clk 0:04:54.6]} 5...
Qb6 {[%clk 0:04:39.4]} 6. Qb3 {[%clk 0:04:52.1]} 6... c4 {[%clk 0:04:37.6]} 7.
Qxb6 {[%clk 0:04:50.9]} 7... axb6 {[%clk 0:04:36.2]} 8. Be2 {[%clk 0:04:49.9]}
8... b5 {[%clk 0:04:34.2]} 9. O-O {[%clk 0:04:49.1]} 9... b4 {[%clk 0:04:31.2]}
10. Nbd2 {[%clk 0:04:48]} 10... Bf5 {[%clk 0:04:20]} 11. Rfe1 {[%clk 0:04:46.8]}
11... e6 {[%clk 0:04:15.8]} 12. Nh4 {[%clk 0:04:44.2]} 12... Bg6 {[%clk
0:04:12.6]} 13. Nxg6 {[%clk 0:04:43.8]} 13... hxg6 {[%clk 0:04:10.9]} 14. Bf3
{[%clk 0:04:43.1]} 14... Be7 {[%clk 0:03:57.3]} 15. e4 {[%clk 0:04:41.8]} 15...
dxe4 {[%clk 0:03:37.1]} 16. Nxe4 {[%clk 0:04:41.7]} 16... Nxe4 {[%clk
0:03:34.7]} 17. Rxe4 {[%clk 0:04:27.3]} 17... O-O {[%clk 0:03:24.2]} 18. Re3
{[%clk 0:03:45]} 18... Rfd8 {[%clk 0:03:09.3]} 19. Bxc6 {[%clk 0:03:09.5]} 19...
bxc6 {[%clk 0:03:05.4]} 20. cxb4 {[%clk 0:03:04.5]} 20... Bxb4 {[%clk
0:03:02.1]} 21. Be5 {[%clk 0:02:32.1]} 21... c5 {[%clk 0:02:44.7]} 22. dxc5
{[%clk 0:02:11.6]} 22... Bxc5 {[%clk 0:02:42.8]} 23. Ree1 {[%clk 0:01:17.4]}
23... Bd4 {[%clk 0:02:37.2]} 24. g3 {[%clk 0:01:07.3]} 24... Bxe5 {[%clk
0:02:16.9]} 25. Rxe5 {[%clk 0:01:07.2]} 25... Rd2 {[%clk 0:02:06.2]} 26. Rb5
{[%clk 0:01:06.6]} 26... Rc8 {[%clk 0:01:54.3]} 27. a4 {[%clk 0:01:04.9]} 27...
c3 {[%clk 0:01:52]} 28. Rc1 {[%clk 0:00:44.1]} 28... c2 {[%clk 0:01:49.2]} 29.
Kg2 {[%clk 0:00:34.1]} 29... Rd1 {[%clk 0:01:47.1]} 30. Rxc2 {[%clk 0:00:32.8]}
30... Rxc2 {[%clk 0:01:43.7]} 31. Rb8+ {[%clk 0:00:20.6]} 31... Kh7 {[%clk
0:01:41.2]} 32. Rb7 {[%clk 0:00:19.5]} 32... f6 {[%clk 0:01:35.3]} 33. b4 {[%clk
0:00:14.3]} 33... Rdd2 {[%clk 0:01:32.9]} 34. h4 {[%clk 0:00:13.1]} 34... Rxf2+
{[%clk 0:01:27.3]} 35. Kh3 {[%clk 0:00:12.7]} 35... f5 {[%clk 0:01:25.3]} 0-1

[Event "Live Chess"]
[Site "Chess.com"]
[Date "2024.06.01"]
[Round "-"]
[White "gmnorfolk"]
[Black "Grace6363"]
[Result "1-0"]
[WhiteElo "2144"]
[BlackElo "1121"]
[TimeControl "300"]
[EndTime "10:31:38 PDT"]
[Termination "gmnorfolk won by resignation"]

1. c4 {[%clk 0:04:57.6]} 1... c5 {[%clk 0:04:57.3]} 2. Nc3 {[%clk 0:04:55.5]}
2... Nc6 {[%clk 0:04:55.3]} 3. Nf3 {[%clk 0:04:53.8]} 3... g6 {[%clk 0:04:54.6]}
4. e3 {[%clk 0:04:53.2]} 4... d6 {[%clk 0:04:50.7]} 5. d4 {[%clk 0:04:51.5]}
5... cxd4 {[%clk 0:04:49.2]} 6. exd4 {[%clk 0:04:50.3]} 6... Bg4 {[%clk
0:04:48]} 7. d5 {[%clk 0:04:48.8]} 7... Ne5 {[%clk 0:04:43.9]} 8. Be2 {[%clk
0:04:35.4]} 8... Bxf3 {[%clk 0:04:42.6]} 9. gxf3 {[%clk 0:04:29.8]} 9... Qd7
{[%clk 0:04:37.2]} 10. f4 {[%clk 0:04:21.9]} 10... Nxc4 {[%clk 0:04:01.3]} 11.
Bxc4 {[%clk 0:04:19.7]} 11... Qh3 {[%clk 0:03:57.6]} 12. Be3 {[%clk 0:04:09]}
12... Bg7 {[%clk 0:03:54.5]} 13. Qa4+ {[%clk 0:04:02.5]} 13... Qd7 {[%clk
0:03:36.5]} 14. Bb5 {[%clk 0:03:59.7]} 1-0

[Event "Live Chess"]
[Site "Chess.com"]
[Date "2024.06.01"]
[Round "-"]
[White "Bunny55"]
[Black "grillage"]
[Result "0-1"]
[WhiteElo "1182"]
[BlackElo "1907"]
[TimeControl "300"]
[EndTime "10:32:04 PDT"]
[Termination "grillage won by resignation"]

1. e4 {[%clk 0:04:55.2]} 1... d5 {[%clk 0:04:58.9]} 2. exd5 {[%clk 0:04:53.2]}
2... Qxd5 {[%clk 0:04:57.1]} 3. Nc3 {[%clk 0:04:51.8]} 3... Qd8 {[%clk
0:04:55.8]} 4. Be2 {[%clk 0:04:50.1]} 4... Nf6 {[%clk 0:04:53]} 5. Nf3 {[%clk
0:04:50]} 5... Bg4 {[%clk 0:04:51]} 6. O-O {[%clk 0:04:46.6]} 6... e6 {[%clk
0:04:49.3]} 7. Re1 {[%clk 0:04:45]} 7... c6 {[%clk 0:04:47.5]} 8. h3 {[%clk
0:04:43.7]} 8... Bxf3 {[%clk 0:04:46]} 9. Bxf3 {[%clk 0:04:41.9]} 9... Nbd7
{[%clk 0:04:43.7]} 10. d4 {[%clk 0:04:40.5]} 10... Bd6 {[%clk 0:04:41.7]} 11.
Qe2 {[%clk 0:04:38.9]} 11... O-O {[%clk 0:04:39.9]} 12. Ne4 {[%clk 0:04:34.6]}
12... Nxe4 {[%clk 0:04:38.2]} 13. Qxe4 {[%clk 0:04:33.1]} 13... Nf6 {[%clk
0:04:37.1]} 14. Qe2 {[%clk 0:04:31.3]} 14... Qc7 {[%clk 0:04:35.1]} 15. Bg5
{[%clk 0:04:19.6]} 15... Be7 {[%clk 0:04:23.2]} 16. c3 {[%clk 0:04:11.9]} 16...
Rfe8 {[%clk 0:04:22]} 17. Bxf6 {[%clk 0:04:09.4]} 17... Bxf6 {[%clk 0:04:20.5]}
18. Rad1 {[%clk 0:04:04.8]} 18... g6 {[%clk 0:04:18.2]} 19. Qd3 {[%clk
0:03:37.4]} 19... Red8 {[%clk 0:04:11.5]} 20. g4 {[%clk 0:03:32.1]} 20... Qa5
{[%clk 0:03:39.3]} 21. a3 {[%clk 0:03:26.5]} 21... Qg5 {[%clk 0:03:34.6]} 22.
Qe3 {[%clk 0:03:21.7]} 22... Qh4 {[%clk 0:03:31.3]} 23. Qf4 {[%clk 0:03:18.2]}
23... Bg5 {[%clk 0:03:26.5]} 24. Qg3 {[%clk 0:03:14.9]} 24... Qxg3+ {[%clk
0:03:25]} 25. fxg3 {[%clk 0:03:13]} 25... a5 {[%clk 0:03:15.9]} 26. h4 {[%clk
0:03:10.3]} 26... Bf6 {[%clk 0:03:14.6]} 27. g5 {[%clk 0:03:08.5]} 27... Bg7
{[%clk 0:03:10.1]} 28. Re2 {[%clk 0:02:13.5]} 28... Rd6 {[%clk 0:03:08]} 29.
Rde1 {[%clk 0:02:11.7]} 29... Rad8 {[%clk 0:03:06.8]} 30. Kg2 {[%clk 0:01:59.6]}
30... Kf8 {[%clk 0:03:04.7]} 31. a4 {[%clk 0:01:47.7]} 31... b5 {[%clk
0:02:56.5]} 32. axb5 {[%clk 0:01:45.3]} 32... cxb5 {[%clk 0:02:55.3]} 33. b3
{[%clk 0:01:44.6]} 33... b4 {[%clk 0:02:49.6]} 34. c4 {[%clk 0:01:42.4]} 34...
Bxd4 {[%clk 0:02:40.1]} 35. Re4 {[%clk 0:01:30.2]} 35... Bc3 {[%clk 0:02:37]}
36. c5 {[%clk 0:01:23.6]} 36... Rd2+ {[%clk 0:02:34.7]} 37. R1e2 {[%clk
0:01:16.7]} 37... Rxe2+ {[%clk 0:02:27.9]} 38. Rxe2 {[%clk 0:01:14.8]} 38... Rc8
{[%clk 0:02:02.4]} 39. Rc2 {[%clk 0:00:58.4]} 39... Rxc5 {[%clk 0:01:57.8]} 40.
Bg4 {[%clk 0:00:56.1]} 40... Rd5 {[%clk 0:01:53.8]} 41. Bf3 {[%clk 0:00:52.8]}
41... Re5 {[%clk 0:01:45]} 42. Re2 {[%clk 0:00:46.6]} 42... Rc5 {[%clk 0:01:38]}
43. Rc2 {[%clk 0:00:31]} 43... Ke7 {[%clk 0:01:36.7]} 44. Re2 {[%clk 0:00:28.5]}
44... Bd4 {[%clk 0:01:31.7]} 45. Kh3 {[%clk 0:00:26.5]} 45... Rc3 {[%clk
0:01:29.9]} 46. h5 {[%clk 0:00:22.3]} 46... Rxf3 {[%clk 0:01:23.5]} 0-1

[Event "Live Chess"]
[Site "Chess.com"]
[Date "2024.06.01"]
[Round "-"]
[White "Nazar-Makarchuk"]
[Black "CheckThis4"]
[Result "0-1"]
[WhiteElo "963"]
[BlackElo "2693"]
[TimeControl "300"]
[EndTime "10:32:07 PDT"]
[Termination "CheckThis4 won by resignation"]

1. e4 {[%clk 0:04:57.4]} 1... d5 {[%clk 0:04:58.1]} 2. exd5 {[%clk 0:04:56.1]}
2... c6 {[%clk 0:04:57.7]} 3. dxc6 {[%clk 0:04:54.9]} 3... Nxc6 {[%clk
0:04:57.6]} 4. Nf3 {[%clk 0:04:54]} 4... e5 {[%clk 0:04:56.4]} 5. Bb5 {[%clk
0:04:50.2]} 5... Bd6 {[%clk 0:04:54]} 6. d3 {[%clk 0:04:48.2]} 6... Ne7 {[%clk
0:04:52.6]} 7. Nc3 {[%clk 0:04:46.6]} 7... O-O {[%clk 0:04:51.2]} 8. O-O {[%clk
0:04:45.2]} 8... Bg4 {[%clk 0:04:49.2]} 9. Bg5 {[%clk 0:04:37]} 9... Nd4 {[%clk
0:04:42.9]} 10. Bxe7 {[%clk 0:04:33.9]} 10... Qxe7 {[%clk 0:04:37.5]} 11. Bc4
{[%clk 0:04:31.8]} 11... Nxf3+ {[%clk 0:04:32]} 12. gxf3 {[%clk 0:04:30]} 12...
Bh3 {[%clk 0:04:31.3]} 13. f4 {[%clk 0:04:20.6]} 13... exf4 {[%clk 0:04:25.5]}
14. Qh5 {[%clk 0:04:10.5]} 14... Bxf1 {[%clk 0:04:22.8]} 15. Kxf1 {[%clk
0:04:07.7]} 15... Rae8 {[%clk 0:04:09.9]} 16. Ne4 {[%clk 0:04:01.5]} 16... h6
{[%clk 0:03:33.4]} 17. Nxd6 {[%clk 0:03:54.8]} 17... Qxd6 {[%clk 0:03:31.2]} 18.
Qd5 {[%clk 0:03:33.3]} 18... Qxd5 {[%clk 0:03:28.2]} 19. Bxd5 {[%clk 0:03:32.1]}
19... b6 {[%clk 0:03:27.7]} 20. c4 {[%clk 0:03:23.8]} 20... Re7 {[%clk 0:03:22]}
21. Re1 {[%clk 0:03:21.9]} 21... Rxe1+ {[%clk 0:03:19.9]} 22. Kxe1 {[%clk
0:03:20.9]} 22... Re8+ {[%clk 0:03:19]} 23. Kd2 {[%clk 0:03:11.9]} 23... g5
{[%clk 0:03:18.5]} 24. b4 {[%clk 0:03:10.7]} 24... Kg7 {[%clk 0:03:16.9]} 25. a4
{[%clk 0:03:09.4]} 25... f5 {[%clk 0:03:14.1]} 26. c5 {[%clk 0:03:08.1]} 26...
bxc5 {[%clk 0:03:12.1]} 27. bxc5 {[%clk 0:03:07.3]} 27... Kf6 {[%clk 0:03:11.2]}
28. c6 {[%clk 0:03:06.2]} 28... Ke5 {[%clk 0:03:08.7]} 29. Bc4 {[%clk
0:03:04.7]} 29... Rc8 {[%clk 0:03:01.6]} 30. Bb5 {[%clk 0:03:03.2]} 30... Kd4
{[%clk 0:02:58.6]} 31. Ke2 {[%clk 0:02:58.4]} 31... g4 {[%clk 0:02:56.3]} 32. f3
{[%clk 0:02:49.4]} 32... h5 {[%clk 0:02:50.9]} 33. fxg4 {[%clk 0:02:47.5]} 33...
fxg4 {[%clk 0:02:49.4]} 34. Kf2 {[%clk 0:02:47]} 34... h4 {[%clk 0:02:48]} 35.
Kg2 {[%clk 0:02:45.3]} 35... Rc7 {[%clk 0:02:46.8]} 36. Kf2 {[%clk 0:02:44.2]}
36... f3 {[%clk 0:02:41.8]} 37. h3 {[%clk 0:02:40.6]} 37... gxh3 {[%clk
0:02:36.3]} 38. Kxf3 {[%clk 0:02:39.7]} 38... Rg7 {[%clk 0:02:35]} 39. Bc4
{[%clk 0:02:31.6]} 39... h2 {[%clk 0:02:32]} 40. c7 {[%clk 0:02:22.6]} 40...
h1=Q+ {[%clk 0:02:29.5]} 0-1

[Event "Live Chess"]
[Site "Chess.com"]
[Date "2024.06.01"]
[Round "-"]
[White "elephantgerrald"]
[Black "sshamil"]
[Result "0-1"]
[WhiteElo "756"]
[BlackElo "1686"]
[TimeControl "300"]
[EndTime "10:32:38 PDT"]
[Termination "sshamil won by checkmate"]

1. e4 {[%clk 0:04:58.6]} 1... Nc6 {[%clk 0:04:58.8]} 2. Nf3 {[%clk 0:04:58]}
2... d6 {[%clk 0:04:58.1]} 3. Nc3 {[%clk 0:04:57]} 3... Bg4 {[%clk 0:04:57.3]}
4. Be2 {[%clk 0:04:56]} 4... Nf6 {[%clk 0:04:56.2]} 5. O-O {[%clk 0:04:55.5]}
5... g6 {[%clk 0:04:54.5]} 6. d3 {[%clk 0:04:55]} 6... Bg7 {[%clk 0:04:53.7]} 7.
Be3 {[%clk 0:04:54.4]} 7... O-O {[%clk 0:04:52]} 8. h3 {[%clk 0:04:52.1]} 8...
Bxf3 {[%clk 0:04:50.5]} 9. Bxf3 {[%clk 0:04:50.9]} 9... Ne5 {[%clk 0:04:50.1]}
10. b3 {[%clk 0:04:46.3]} 10... c6 {[%clk 0:04:49.2]} 11. d4 {[%clk 0:04:43.4]}
11... Nxf3+ {[%clk 0:04:47.7]} 12. Qxf3 {[%clk 0:04:42]} 12... Qa5 {[%clk
0:04:44.3]} 13. Bg5 {[%clk 0:04:37.4]} 13... h6 {[%clk 0:04:41.1]} 14. Bxf6
{[%clk 0:04:35.9]} 14... Bxf6 {[%clk 0:04:39.1]} 15. e5 {[%clk 0:04:27.4]} 15...
dxe5 {[%clk 0:04:36.6]} 16. dxe5 {[%clk 0:04:26]} 16... Bxe5 {[%clk 0:04:35.6]}
17. b4 {[%clk 0:04:15.3]} 17... Qxb4 {[%clk 0:04:33.4]} 18. Rab1 {[%clk
0:04:09.2]} 18... Qxc3 {[%clk 0:04:32]} 19. Qxc3 {[%clk 0:04:08]} 19... Bxc3
{[%clk 0:04:30.3]} 20. Rxb7 {[%clk 0:04:04.6]} 20... e6 {[%clk 0:04:29]} 21. Kh2
{[%clk 0:03:59.2]} 21... Rfb8 {[%clk 0:04:25.8]} 22. Rc7 {[%clk 0:03:51.8]}
22... Be5+ {[%clk 0:04:24.2]} 23. g3 {[%clk 0:03:45.3]} 23... Bxc7 {[%clk
0:04:24.1]} 24. Rd1 {[%clk 0:03:40]} 24... Rb2 {[%clk 0:04:22.5]} 25. Rd7 {[%clk
0:03:38]} 25... Rxc2 {[%clk 0:04:21.6]} 26. Rxc7 {[%clk 0:03:36.8]} 26... Rxf2+
{[%clk 0:04:20.5]} 27. Kg1 {[%clk 0:03:35.3]} 27... Rxa2 {[%clk 0:04:20.4]} 28.
Rxc6 {[%clk 0:03:33.4]} 28... a5 {[%clk 0:04:19.7]} 29. Rc1 {[%clk 0:03:31.5]}
29... a4 {[%clk 0:04:18.4]} 30. Kf1 {[%clk 0:03:29.5]} 30... Rh2 {[%clk
0:04:16.4]} 31. Kg1 {[%clk 0:03:26.8]} 31... Rxh3 {[%clk 0:04:15.2]} 32. Kg2
{[%clk 0:03:25.7]} 32... Rh5 {[%clk 0:04:14.2]} 33. g4 {[%clk 0:03:24.4]} 33...
Rb5 {[%clk 0:04:11.6]} 34. Kf2 {[%clk 0:03:23.2]} 34... a3 {[%clk 0:04:11]} 35.
Ra1 {[%clk 0:03:21.8]} 35... a2 {[%clk 0:04:09.8]} 36. Ke2 {[%clk 0:03:20.6]}
36... Rb1 {[%clk 0:04:08.9]} 37. Rxb1 {[%clk 0:03:19.4]} 37... axb1=Q {[%clk
0:04:08.3]} 38. Ke3 {[%clk 0:03:17.7]} 38... Ra3+ {[%clk 0:03:58.8]} 39. Kf4
{[%clk 0:03:17.6]} 39... Qb4+ {[%clk 0:03:57.5]} 40. Ke5 {[%clk 0:03:17.5]}
40... Ra5+ {[%clk 0:03:55]} 41. Kf6 {[%clk 0:03:17.4]} 41... Qd4+ {[%clk
0:03:51.2]} 42. Ke7 {[%clk 0:03:15.7]} 42... Ra7+ {[%clk 0:03:50.1]} 43. Ke8
{[%clk 0:03:14.2]} 43... Qd7# {[%clk 0:03:49.7]} 0-1

[Event "Live Chess"]
[Site "Chess.com"]
[Date "2024.06.01"]
[Round "-"]
[White "Cruiseylee78"]
[Black "Velocity"]
[Result "1-0"]
[WhiteElo "1665"]
[BlackElo "1710"]
[TimeControl "300"]
[EndTime "10:32:59 PDT"]
[Termination "Cruiseylee78 won by resignation"]

1. d4 {[%clk 0:04:59.5]} 1... Nf6 {[%clk 0:04:59]} 2. Bf4 {[%clk 0:04:58.3]}
2... d6 {[%clk 0:04:57.7]} 3. e3 {[%clk 0:04:57.4]} 3... Nbd7 {[%clk 0:04:57.2]}
4. Bd3 {[%clk 0:04:55.8]} 4... e5 {[%clk 0:04:56.5]} 5. Bg5 {[%clk 0:04:54.7]}
5... h6 {[%clk 0:04:55.3]} 6. Bh4 {[%clk 0:04:53.5]} 6... Be7 {[%clk 0:04:53.2]}
7. Nf3 {[%clk 0:04:52.5]} 7... e4 {[%clk 0:04:50.4]} 8. Bxf6 {[%clk 0:04:51.4]}
8... Nxf6 {[%clk 0:04:50.3]} 9. Bc4 {[%clk 0:04:49.5]} 9... exf3 {[%clk
0:04:49.2]} 10. Qxf3 {[%clk 0:04:48.6]} 10... Be6 {[%clk 0:04:47.1]} 11. Bxe6
{[%clk 0:04:46.9]} 11... fxe6 {[%clk 0:04:47]} 12. h3 {[%clk 0:04:45.9]} 12...
O-O {[%clk 0:04:44]} 13. Qxb7 {[%clk 0:04:41.9]} 13... Rb8 {[%clk 0:04:43.3]}
14. Qxa7 {[%clk 0:04:41.2]} 14... Rxb2 {[%clk 0:04:42.7]} 15. Nd2 {[%clk
0:04:36]} 15... Qa8 {[%clk 0:04:37.5]} 16. Qxc7 {[%clk 0:04:32.5]} 16... Rxa2
{[%clk 0:04:29.8]} 17. Rxa2 {[%clk 0:04:29.4]} 17... Qxa2 {[%clk 0:04:29.7]} 18.
O-O {[%clk 0:04:20.3]} 18... Nd5 {[%clk 0:04:28.7]} 19. Qd7 {[%clk 0:04:15.2]}
19... Rf7 {[%clk 0:04:12.2]} 20. Qxe6 {[%clk 0:04:13.8]} 20... Nc3 {[%clk
0:04:09.2]} 21. Qc8+ {[%clk 0:04:08.8]} 21... Bf8 {[%clk 0:04:04.1]} 22. Qxc3
{[%clk 0:04:07.7]} 22... d5 {[%clk 0:03:56.8]} 23. Ra1 {[%clk 0:04:03.6]} 23...
Rc7 {[%clk 0:03:50.4]} 24. Rxa2 {[%clk 0:03:57.4]} 24... Rxc3 {[%clk 0:03:49.7]}
25. e4 {[%clk 0:03:52.9]} 25... dxe4 {[%clk 0:03:46.5]} 26. Nxe4 {[%clk
0:03:52]} 26... Be7 {[%clk 0:03:42.6]} 27. Nxc3 {[%clk 0:03:50.2]} 1-0

[Event "Live Chess"]
[Site "Chess.com"]
[Date "2024.06.01"]
[Round "-"]
[White "rakibsachchu"]
[Black "DenisOnopriichuk2003"]
[Result "1-0"]
[WhiteElo "1564"]
[BlackElo "1798"]
[TimeControl "300"]
[EndTime "10:33:02 PDT"]
[Termination "rakibsachchu won by resignation"]

1. e4 {[%clk 0:04:55.4]} 1... c6 {[%clk 0:04:58.9]} 2. d4 {[%clk 0:04:53]} 2...
d5 {[%clk 0:04:58.8]} 3. e5 {[%clk 0:04:49.8]} 3... Bf5 {[%clk 0:04:55.2]} 4.
Bd3 {[%clk 0:04:46]} 4... Bxd3 {[%clk 0:04:53.7]} 5. Qxd3 {[%clk 0:04:44.1]}
5... e6 {[%clk 0:04:53.6]} 6. f4 {[%clk 0:04:39.7]} 6... Qb6 {[%clk 0:04:51.6]}
7. Nf3 {[%clk 0:04:34.7]} 7... c5 {[%clk 0:04:49.2]} 8. c3 {[%clk 0:04:30.8]}
8... c4 {[%clk 0:04:47.6]} 9. Qc2 {[%clk 0:04:27.5]} 9... Ne7 {[%clk 0:04:47.1]}
10. O-O {[%clk 0:04:24.7]} 10... h5 {[%clk 0:04:44.7]} 11. Ng5 {[%clk
0:04:18.2]} 11... Nf5 {[%clk 0:04:43.5]} 12. Qe2 {[%clk 0:04:00.2]} 12... Be7
{[%clk 0:04:38.9]} 13. Na3 {[%clk 0:03:54.1]} 13... Bxg5 {[%clk 0:04:31.3]} 14.
fxg5 {[%clk 0:03:50.8]} 14... Nc6 {[%clk 0:04:26.8]} 15. Nc2 {[%clk 0:03:40.3]}
15... O-O-O {[%clk 0:04:25.8]} 16. Ne3 {[%clk 0:03:34]} 16... Nce7 {[%clk
0:04:24.5]} 17. b3 {[%clk 0:03:19.2]} 17... Nxe3 {[%clk 0:04:21.6]} 18. Bxe3
{[%clk 0:03:16.5]} 18... Nf5 {[%clk 0:04:21.2]} 19. bxc4 {[%clk 0:03:12.1]}
19... Nxe3 {[%clk 0:04:17.9]} 20. Qxe3 {[%clk 0:03:08.8]} 20... dxc4 {[%clk
0:04:17.8]} 21. Rxf7 {[%clk 0:03:05]} 21... Rhf8 {[%clk 0:04:11.7]} 22. Rxg7
{[%clk 0:02:45.4]} 22... Qb2 {[%clk 0:04:09.7]} 23. Re1 {[%clk 0:02:41.7]} 23...
Rd7 {[%clk 0:04:05.2]} 24. Rxd7 {[%clk 0:02:29.9]} 24... Kxd7 {[%clk 0:04:05.1]}
25. g6 {[%clk 0:02:26.2]} 25... Rg8 {[%clk 0:04:00.3]} 26. Qh6 {[%clk
0:02:21.4]} 26... Qxc3 {[%clk 0:03:52.3]} 27. Qh7+ {[%clk 0:02:15.9]} 27... Kc6
{[%clk 0:03:50.1]} 28. Rf1 {[%clk 0:02:09.6]} 28... Qxd4+ {[%clk 0:03:48.2]} 29.
Kh1 {[%clk 0:02:07.3]} 29... Rd8 {[%clk 0:03:43.7]} 30. g7 {[%clk 0:01:59.4]}
30... Qd3 {[%clk 0:03:38.9]} 31. Qxd3 {[%clk 0:01:54.8]} 31... cxd3 {[%clk
0:03:35.5]} 32. Rf8 {[%clk 0:01:46.4]} 32... d2 {[%clk 0:03:34.7]} 33. Rxd8
{[%clk 0:01:43.8]} 1-0

[Event "Live Chess"]
[Site "Chess.com"]
[Date "2024.06.01"]
[Round "-"]
[White "Sokolik_UA"]
[Black "Enhard"]
[Result "0-1"]
[WhiteElo "798"]
[BlackElo "1414"]
[TimeControl "300"]
[EndTime "10:33:08 PDT"]
[Termination "Enhard won by checkmate"]

1. e4 {[%clk 0:04:56.8]} 1... c6 {[%clk 0:04:58.5]} 2. d4 {[%clk 0:04:56.1]}
2... d5 {[%clk 0:04:58]} 3. Nc3 {[%clk 0:04:55.7]} 3... dxe4 {[%clk 0:04:57.1]}
4. Nxe4 {[%clk 0:04:54.2]} 4... Bf5 {[%clk 0:04:56.6]} 5. f3 {[%clk 0:04:49.6]}
5... Bxe4 {[%clk 0:04:49.3]} 6. fxe4 {[%clk 0:04:48.3]} 6... Nf6 {[%clk
0:04:47.7]} 7. Be2 {[%clk 0:04:46.9]} 7... Nxe4 {[%clk 0:04:45.5]} 8. Nf3 {[%clk
0:04:45.8]} 8... e6 {[%clk 0:04:43.3]} 9. O-O {[%clk 0:04:44.3]} 9... Nf6 {[%clk
0:04:41]} 10. c3 {[%clk 0:04:41.7]} 10... Be7 {[%clk 0:04:38.3]} 11. Bg5 {[%clk
0:04:37.5]} 11... Nd5 {[%clk 0:04:30]} 12. Bxe7 {[%clk 0:04:33.3]} 12... Qxe7
{[%clk 0:04:28.7]} 13. Qd3 {[%clk 0:04:31.4]} 13... Nf6 {[%clk 0:04:27.1]} 14.
Ng5 {[%clk 0:04:29.2]} 14... h6 {[%clk 0:04:25.2]} 15. Ne4 {[%clk 0:04:23]}
15... Nbd7 {[%clk 0:04:22]} 16. Bf3 {[%clk 0:04:17.6]} 16... Nxe4 {[%clk
0:04:20.4]} 17. Bxe4 {[%clk 0:04:15.7]} 17... Nf6 {[%clk 0:04:19.8]} 18. b4
{[%clk 0:04:10.7]} 18... a6 {[%clk 0:04:18.1]} 19. a4 {[%clk 0:04:09.5]} 19...
O-O {[%clk 0:04:08.5]} 20. Ra2 {[%clk 0:03:57.9]} 20... Rad8 {[%clk 0:04:04.7]}
21. Raf2 {[%clk 0:03:56.3]} 21... Nd5 {[%clk 0:03:53.8]} 22. Bh7+ {[%clk
0:03:51]} 22... Kh8 {[%clk 0:03:51.5]} 23. Be4 {[%clk 0:03:38.2]} 23... Nf6
{[%clk 0:03:46.5]} 24. Bf3 {[%clk 0:03:34]} 24... e5 {[%clk 0:03:40.6]} 25. Bd1
{[%clk 0:03:32.5]} 25... e4 {[%clk 0:03:30.3]} 26. Qe3 {[%clk 0:03:29.1]} 26...
Nd5 {[%clk 0:03:23]} 27. Qg3 {[%clk 0:03:19.9]} 27... e3 {[%clk 0:03:14.9]} 28.
Re2 {[%clk 0:03:16.7]} 28... Rde8 {[%clk 0:03:13.3]} 29. Bc2 {[%clk 0:03:15.1]}
29... Nxc3 {[%clk 0:03:10.5]} 30. Rxe3 {[%clk 0:03:11.9]} 30... Qxe3+ {[%clk
0:03:07.9]} 31. Qxe3 {[%clk 0:03:11.2]} 31... Rxe3 {[%clk 0:03:07.2]} 32. b5
{[%clk 0:03:07.4]} 32... axb5 {[%clk 0:03:05.1]} 33. axb5 {[%clk 0:03:06]} 33...
Nxb5 {[%clk 0:03:03.8]} 34. Bf5 {[%clk 0:02:59.5]} 34... Nxd4 {[%clk 0:03:01]}
35. Bh3 {[%clk 0:02:57.5]} 35... f6 {[%clk 0:02:56.1]} 36. Rf3 {[%clk
0:02:53.9]} 36... Nxf3+ {[%clk 0:02:51.7]} 37. gxf3 {[%clk 0:02:53.3]} 37...
Rxf3 {[%clk 0:02:51.1]} 38. Kg2 {[%clk 0:02:51.8]} 38... Re3 {[%clk 0:02:49.2]}
39. Kf2 {[%clk 0:02:47.9]} 39... Rfe8 {[%clk 0:02:47.6]} 40. Bg4 {[%clk
0:02:46.3]} 40... R8e7 {[%clk 0:02:46.4]} 41. h3 {[%clk 0:02:44]} 41... b5
{[%clk 0:02:44.3]} 42. Kg2 {[%clk 0:02:40.5]} 42... b4 {[%clk 0:02:43.1]} 43.
Kf2 {[%clk 0:02:40.1]} 43... c5 {[%clk 0:02:41.9]} 44. Kg2 {[%clk 0:02:37.2]}
44... c4 {[%clk 0:02:39.4]} 45. Kf2 {[%clk 0:02:34.6]} 45... c3 {[%clk
0:02:38.4]} 46. Be2 {[%clk 0:02:34]} 46... Rxe2+ {[%clk 0:02:37.2]} 47. Kf3
{[%clk 0:02:32.5]} 47... R2e3+ {[%clk 0:02:34.4]} 48. Kf4 {[%clk 0:02:31.3]}
48... R7e4+ {[%clk 0:02:32.1]} 49. Kf5 {[%clk 0:02:30.3]} 49... Rd4 {[%clk
0:02:31]} 50. Kg6 {[%clk 0:02:29]} 50... Kg8 {[%clk 0:02:27.8]} 51. h4 {[%clk
0:02:25.6]} 51... Rd5 {[%clk 0:02:23.4]} 52. h5 {[%clk 0:02:23.8]} 52... Rg3#
{[%clk 0:02:22.8]} 0-1

[Event "Live Chess"]
[Site "Chess.com"]
[Date "2024.06.01"]
[Round "-"]
[White "TigerTank70"]
[Black "CennyddB"]
[Result "1-0"]
[WhiteElo "2180"]
[BlackElo "1132"]
[TimeControl "300"]
[EndTime "10:33:15 PDT"]
[Termination "TigerTank70 won by resignation"]

1. e4 {[%clk 0:04:57.5]} 1... c5 {[%clk 0:04:58.9]} 2. d4 {[%clk 0:04:56.3]}
2... cxd4 {[%clk 0:04:56.8]} 3. c3 {[%clk 0:04:56]} 3... Nf6 {[%clk 0:04:55.5]}
4. e5 {[%clk 0:04:54.7]} 4... Nd5 {[%clk 0:04:54.2]} 5. Bc4 {[%clk 0:04:54.5]}
5... Nb6 {[%clk 0:04:52.9]} 6. Bb3 {[%clk 0:04:53.2]} 6... Nc6 {[%clk
0:04:50.9]} 7. Nf3 {[%clk 0:04:51.8]} 7... e6 {[%clk 0:04:46.8]} 8. O-O {[%clk
0:04:49.6]} 8... d6 {[%clk 0:04:45.5]} 9. cxd4 {[%clk 0:04:46.9]} 9... dxe5
{[%clk 0:04:42.3]} 10. dxe5 {[%clk 0:04:45.2]} 10... Qxd1 {[%clk 0:04:40]} 11.
Rxd1 {[%clk 0:04:45.1]} 11... Be7 {[%clk 0:04:33.8]} 12. Be3 {[%clk 0:04:44]}
12... Nd7 {[%clk 0:04:25.4]} 13. Nc3 {[%clk 0:04:38.1]} 13... Ndxe5 {[%clk
0:04:18.4]} 14. Nxe5 {[%clk 0:04:31.3]} 14... Nxe5 {[%clk 0:04:17]} 15. Ba4+
{[%clk 0:04:29.9]} 15... Nc6 {[%clk 0:04:13]} 16. Nb5 {[%clk 0:04:25.4]} 16...
O-O {[%clk 0:04:07.9]} 17. Nc7 {[%clk 0:04:23.3]} 17... Rb8 {[%clk 0:04:06.5]}
18. Rac1 {[%clk 0:04:17.2]} 18... Rd8 {[%clk 0:03:59.1]} 19. b3 {[%clk
0:03:48.8]} 19... Ne5 {[%clk 0:03:40.7]} 20. Bxa7 {[%clk 0:03:41.1]} 20... Bd6
{[%clk 0:03:18.3]} 21. Bxb8 {[%clk 0:03:36.4]} 1-0